bitfinex-derivatives/quotes_ETHF0:USTF0_20210109
["timestamp","ask_amount","ask_price","bid_price","bid_amount"]
[1610175354122,3.405,1183.5,1183.1,5.77379]
[1610175354323,3.405,1183.5,1183.1,1.7642]
[1610175355322,3.405,1183.5,1182.8,1.6719]
[1610175355523,5.1192,1183.5,1182.8,1.6719]
[1610175355923,4.00959,1182.9,1182.8,1.6719]
[1610175356522,4.00959,1182.9,1182.2,61.6499]
[1610175357926,4.00959,1182.5,1182.2,65.65949]
[1610175359426,4.00959,1182.5,1182.2,61.6499]
[1610175359627,4.00959,1182.5,1182.3,1.29056397]
[1610175362433,4.00959,1182.5,1182.2,2.5201]
[1610175362734,4.00959,1182.5,1181.9,4.00959]
[1610175364036,4.00959,1182.2,1182.0,1.29082736]
[1610175365437,59.3998,1183.0,1182.0,1.29082736]
[1610175365638,1.6897,1183.2,1182.2,61.7268]
[1610175366039,1.6897,1183.2,1182.8,4.00959]
[1610175366439,5.1192,1183.5,1182.8,4.00959]
[1610175366639,5.1192,1183.5,1182.9,63.0106]
[1610175366840,3.405,1183.5,1182.9,65.1265]
[1610175368043,4.00959,1183.0,1182.9,65.1265]
[1610175369945,3.405,1183.5,1182.9,65.1265]
[1610175370146,7.41459,1183.5,1182.9,65.1265]
[1610175372047,4.00959,1183.0,1182.9,65.1265]
[1610175372247,4.00959,1183.0,1182.9,2.1159]
[1610175372447,4.00959,1183.0,1182.5,63.1782]
[1610175374152,4.00959,1182.6,1182.5,2.458]
[1610175374351,4.00959,1182.6,1182.0,60.9715]
[1610175375353,4.00959,1182.6,1182.1,1.29088322]
[1610175376050,4.00959,1182.2,1182.1,1.29088322]
[1610175376352,43.21725289,1183.1,1182.1,1.29088322]
[1610175376751,43.23429579,1183.2,1182.0,60.9715]
[1610175376952,110.39016754,1183.3,1182.0,60.9715]
[1610175377752,43.20189267,1183.2,1182.0,60.9715]
[1610175378153,73.20189267,1183.2,1182.1,1.29084475]
[1610175378354,43.20378849,1183.1,1182.1,1.29084475]
[1610175378755,43.16943652,1183.0,1182.1,1.29084475]
[1610175378953,45.00733652,1183.0,1182.1,1.29084475]
[1610175379155,43.1343992,1182.8,1182.1,1.29084475]
[1610175379354,43.1343992,1182.8,1182.0,2.1938]
[1610175379555,100.3580992,1182.8,1182.0,2.1938]
[1610175379754,6.5625,1182.7,1181.4,55.8331]
[1610175379954,43.08593388,1182.6,1181.4,55.8331]
[1610175380154,4.00959,1181.5,1181.4,55.8331]
[1610175380754,4.00959,1181.5,1181.2,4.00959]
[1610175382355,4.00959,1181.3,1181.2,4.00959]
[1610175382555,67.8069,1182.4,1181.2,4.00959]
[1610175382755,43.05203229,1182.6,1181.2,6.12309]
[1610175382954,51.47125514,1182.7,1181.2,54.80099]
[1610175383257,8.3784,1182.7,1181.2,54.80099]
[1610175383457,8.3784,1182.7,1181.3,1.29123437]
[1610175384255,8.3784,1182.7,1182.1,4.00959]
[1610175385155,8.3784,1182.7,1182.0,1.9446]
[1610175386155,4.00959,1182.1,1182.0,1.9446]
[1610175387863,4.00959,1182.1,1181.4,4.00959]
[1610175388261,4.00959,1181.5,1181.4,4.00959]
[1610175389260,4.00959,1181.5,1181.2,2.1135]
[1610175389460,4.00959,1181.5,1181.4,1.29131638]
[1610175390261,56.8361,1182.3,1181.4,1.29131638]
[1610175390461,43.41445288,1182.6,1181.4,1.29131638]
[1610175390661,43.41445288,1182.6,1181.4,71.16861638]
[1610175390863,8.3784,1182.7,1181.4,69.8773]
[1610175391461,51.81507748,1182.7,1181.4,69.8773]
[1610175392162,4.00959,1181.5,1181.4,69.8773]
[1610175392363,4.00959,1181.5,1181.2,6.12309]
[1610175393667,4.00959,1181.5,1181.3,1.29131773]
[1610175396869,56.515,1182.5,1181.3,1.29131773]
[1610175397071,51.66202994,1182.7,1181.4,51.5151]
[1610175397473,8.3784,1182.7,1181.4,51.5151]
[1610175397674,8.3784,1182.7,1181.5,1.29122918]
[1610175397876,51.5631945,1182.7,1181.5,3.66332918]
[1610175398075,59.6036,1182.5,1181.5,3.66332918]
[1610175398274,4.00959,1181.6,1181.5,3.66332918]
[1610175399073,4.00959,1181.6,1181.5,2.3721]
[1610175400174,4.00959,1181.6,1181.2,2.1135]
[1610175400575,4.00959,1181.6,1180.8,4.00959]
[1610175401976,4.00959,1181.6,1180.9,1.29196003]
[1610175402176,4.00959,1181.6,1180.9,3.62536003]
[1610175402376,4.00959,1181.0,1180.9,3.62536003]
[1610175403478,4.00959,1181.0,1180.9,2.3334]
[1610175406978,13.97429,1181.0,1180.9,2.3334]
[1610175407278,4.00959,1181.0,1179.8,0.25849624]
[1610175407479,63.8759,1180.8,1179.8,0.25849624]
[1610175407880,63.8759,1180.8,1179.6,0.25856339]
[1610175408279,4.00959,1179.7,1179.6,4.00959]
[1610175409878,4.00959,1179.7,1179.4,0.25859483]
[1610175410178,4.00959,1179.7,1179.6,1.29305611]
[1610175410378,63.8759,1180.8,1179.6,7.43004611]
[1610175410980,6.1337,1181.0,1179.6,7.43004611]
[1610175411181,6.5435,1180.9,1179.6,73.37164611]
[1610175411584,49.72664582,1181.2,1179.6,72.07859]
[1610175411781,12.7421,1181.2,1179.6,72.33718924]
[1610175411984,6.2607,1181.2,1179.6,72.33718924]
[1610175412182,43.27160021,1181.4,1179.8,0.25858294]
[1610175412383,43.27160021,1181.4,1180.4,4.00959]
[1610175412583,43.27062717,1181.6,1180.4,5.89589]
[1610175412985,43.28321566,1181.8,1180.4,5.89589]
[1610175413384,43.24532269,1182.0,1180.4,5.89589]
[1610175414184,43.22518861,1181.9,1180.4,5.89589]
[1610175414384,43.22518861,1181.9,1180.6,4.00959]
[1610175414584,43.22518861,1181.9,1180.4,1.8863]
[1610175414785,43.14291729,1181.8,1180.4,1.8863]
[1610175415986,43.07440531,1181.7,1180.4,1.8863]
[1610175416186,10.1098,1181.6,1180.4,1.8863]
[1610175416389,4.00959,1180.5,1180.4,1.8863]
[1610175417587,4.00959,1180.5,1179.8,4.00959]
[1610175417790,4.00959,1180.5,1180.1,60.9619]
[1610175417989,4.00959,1180.5,1180.1,63.5502]
[1610175418190,46.47306242,1181.4,1180.1,63.5502]
[1610175418390,4.00959,1180.6,1180.1,63.5502]
[1610175419194,4.00959,1180.6,1180.1,2.5883]
[1610175420294,97.70334311,1181.3,1180.1,2.5883]
[1610175420295,4.00959,1180.2,1180.1,2.5883]
[1610175422897,4.00959,1180.2,1180.1,3.88128029]
[1610175425299,42.86731147,1181.2,1180.1,3.88128029]
[1610175425703,42.93528433,1181.3,1180.1,3.88128029]
[1610175425902,3.405,1181.4,1180.1,3.88128029]
[1610175426402,3.405,1181.4,1180.7,4.00959]
[1610175426601,3.405,1181.4,1180.7,2.3547]
[1610175428407,4.00959,1180.8,1180.7,2.3547]
[1610175431715,4.00959,1180.8,1180.1,2.5883]
[1610175431914,4.00959,1180.8,1180.0,4.00959]
[1610175432315,4.00959,1180.4,1180.3,4.00959]
[1610175433314,4.00959,1180.4,1180.3,5.30232959]
[1610175433517,4.00959,1180.4,1180.3,1.29273959]
[1610175434915,4.00959,1180.4,1180.0,5.30247373]
[1610175436216,4.00959,1180.4,1180.1,1.29293119]
[1610175436416,4.00959,1180.2,1180.1,1.29293119]
[1610175436618,4.00959,1180.2,1180.1,3.12453119]
[1610175443427,4.00959,1180.2,1180.1,1.8316]
[1610175443827,4.00959,1180.2,1179.6,2.1274]
[1610175444029,4.00959,1180.2,1179.2,0.25864929]
[1610175444426,65.9912,1180.3,1179.3,4.00959]
[1610175444626,65.9912,1180.3,1179.3,5.88639]
[1610175444827,65.9912,1180.3,1179.3,7.1798614]
[1610175446126,65.9912,1180.3,1179.4,1.29354177]
[1610175446426,4.00959,1179.5,1179.4,1.29354177]
[1610175453035,4.00959,1179.5,1179.3,1.8768]
[1610175453232,4.00959,1179.5,1178.6,4.00959]
[1610175454432,4.00959,1178.7,1178.6,4.00959]
[1610175455834,69.6866,1179.6,1178.6,5.30371659]
[1610175456035,69.6866,1179.6,1178.6,7.47081659]
[1610175456036,3.405,1179.6,1178.6,7.47081659]
[1610175456235,3.405,1179.6,1178.7,62.9736]
[1610175456435,4.00959,1179.5,1179.3,4.00959]
[1610175457536,4.00959,1179.5,1178.8,0.25874803]
[1610175457739,4.00959,1179.5,1179.0,48.1752]
[1610175457936,4.00959,1179.5,1179.0,50.5539]
[1610175458142,3.405,1179.6,1179.0,50.81259754]
[1610175458337,3.405,1179.6,1179.0,2.63739754]
[1610175458540,3.405,1179.6,1179.5,4.00959]
[1610175458738,3.405,1179.6,1179.5,6.53599]
[1610175458938,3.405,1179.6,1179.5,2.5264]
[1610175459438,3.3980697,1179.6,1179.5,2.5264]
[1610175459638,7.41459,1180.0,1179.5,2.5264]
[1610175460439,4.00959,1179.6,1179.5,2.5264]
[1610175463741,4.00959,1179.6,1179.0,2.3787]
[1610175464041,4.00959,1179.6,1178.7,0.25871495]
[1610175464343,4.00959,1179.6,1178.6,69.9919]
[1610175464543,59.5911,1180.0,1178.8,4.00959]
[1610175465746,59.5911,1180.0,1178.9,1.29407178]
[1610175466148,59.5911,1180.0,1178.9,3.76427178]
[1610175466549,4.00959,1179.0,1178.9,3.76427178]
[1610175467149,4.00959,1179.0,1178.9,2.4702]
[1610175471154,4.00959,1179.0,1178.6,2.1671]
[1610175471352,4.00959,1179.0,1178.3,4.00959]
[1610175472054,17.00959,1179.0,1178.3,4.00959]
[1610175472455,4.00959,1178.4,1178.3,4.00959]
[1610175473859,4.00959,1178.4,1178.1,0.874172]
[1610175474057,4.00959,1178.4,1178.3,1.29447335]
[1610175474257,4.00959,1178.4,1178.3,3.73327335]
[1610175475457,4.00959,1178.4,1178.3,2.4388]
[1610175478161,16.405,1179.0,1178.3,2.4388]
[1610175478562,16.405,1179.0,1178.4,4.00959]
[1610175478962,13.0,1179.0,1178.4,4.00959]
[1610175479760,13.0,1179.0,1178.6,58.868]
[1610175479961,13.0,1179.0,1178.6,90.9441]
[1610175480562,13.0,1179.0,1178.9,4.00959]
[1610175480763,13.0,1179.0,1178.9,6.22909]
[1610175481164,6.9595,1179.0,1178.9,6.22909]
[1610175481366,4.00959,1179.9,1178.9,15.55479]
[1610175481564,4.00959,1179.9,1178.9,16.84841753]
[1610175481765,4.00959,1179.9,1178.9,17.10715013]
[1610175481966,3.405,1180.0,1179.0,30.0]
[1610175482166,3.405,1180.0,1179.4,64.6009]
[1610175482366,3.405,1180.0,1179.4,96.385]
[1610175482567,3.405,1180.0,1179.9,4.00959]
[1610175482767,3.405,1180.0,1179.9,36.46979]
[1610175483568,13.28652277,1181.4,1179.9,36.46979]
[1610175483569,42.95529849,1181.4,1179.9,36.46979]
[1610175483767,42.95529849,1181.4,1180.4,48.9505]
[1610175483968,42.95529849,1181.4,1180.4,50.7433]
[1610175484570,13.28238851,1181.6,1180.9,4.00959]
[1610175484571,42.93578214,1181.6,1180.9,4.00959]
[1610175484768,42.93578214,1181.6,1180.9,5.90679]
[1610175485469,46.31972878,1181.7,1180.9,5.90679]
[1610175486071,42.91472878,1181.7,1181.1,52.425]
[1610175486271,42.9620349,1181.8,1181.1,52.425]
[1610175486471,42.9620349,1181.8,1181.4,4.00959]
[1610175486673,43.00350976,1182.0,1181.1,52.425]
[1610175486871,43.00350976,1182.0,1181.4,2.3444]
[1610175487072,43.00908121,1182.1,1181.4,2.3444]
[1610175487975,42.97980005,1182.0,1181.4,2.3444]
[1610175488573,4.00959,1181.5,1181.4,2.3444]
[1610175491975,4.00959,1181.5,1180.9,72.0153]
[1610175492575,4.00959,1181.5,1181.0,4.00959]
[1610175494378,4.00959,1181.5,1181.2,56.1728]
[1610175494575,4.00959,1181.5,1181.4,4.00959]
[1610175495577,4.00959,1181.5,1181.2,2.3407]
[1610175496577,4.00959,1181.3,1181.2,2.3407]
[1610175498178,4.00959,1181.3,1180.9,1.8972]
[1610175498377,4.00959,1181.3,1180.5,62.0148]
[1610175498577,4.00959,1180.6,1180.4,1.7928]
[1610175498777,4.00959,1180.6,1179.9,2.4602]
[1610175498977,4.00959,1180.6,1179.8,67.4409]
[1610175500380,4.00959,1180.6,1179.1,0.25867485]
[1610175500581,4.00959,1179.5,1179.3,4.00959]
[1610175500782,10.216,1180.6,1179.3,4.00959]
[1610175500981,10.216,1180.6,1179.3,5.81449]
[1610175501381,52.81990073,1180.6,1179.3,5.81449]
[1610175502684,4.00959,1179.4,1179.3,5.81449]
[1610175503688,4.00959,1179.4,1179.3,1.8049]
[1610175505988,4.00959,1179.4,1179.0,51.162]
[1610175506590,4.00959,1179.4,1179.3,4.00959]
[1610175506790,4.00959,1179.4,1179.3,6.37409]
[1610175507691,3.405,1179.9,1179.3,6.37409]
[1610175507891,53.17804017,1180.6,1179.3,6.37409]
[1610175508293,53.17804017,1180.6,1179.4,55.2278]
[1610175508491,10.216,1180.6,1179.4,55.2278]
[1610175508690,4.00959,1180.2,1179.9,4.00959]
[1610175509391,3.405,1180.6,1179.9,13.29639]
[1610175509793,3.405,1180.6,1179.9,15.80059]
[1610175510595,4.00959,1180.0,1179.9,11.791]
[1610175510796,4.00959,1180.0,1179.9,2.5042]
[1610175512599,4.00959,1180.0,1179.3,2.3645]
[1610175512998,4.00959,1180.0,1178.9,48.1834]
[1610175513199,37.41459,1180.0,1178.9,48.1834]
[1610175513599,37.41459,1180.0,1178.5,0.2588132]
[1610175513799,143.84858436,1180.0,1178.3,0.25879846]
[1610175514197,42.83738099,1179.9,1178.2,0.25883763]
[1610175514398,30.0,1179.8,1178.2,0.25883763]
[1610175514600,4.00959,1178.3,1178.2,0.25883763]
[1610175515001,4.00959,1178.3,1178.1,0.6153159]
[1610175516803,44.390137,1179.2,1178.1,0.6153159]
[1610175517002,44.390137,1179.2,1178.1,2.2040159]
[1610175517404,1.6846,1179.2,1178.1,2.2040159]
[1610175517603,6.436,1179.3,1178.1,2.2040159]
[1610175518002,42.69499321,1179.5,1178.1,2.2040159]
[1610175518204,42.73349534,1179.6,1178.1,2.2040159]
[1610175518404,48.88207504,1179.7,1178.1,69.7639159]
[1610175518603,4.00959,1178.8,1178.6,4.00959]
[1610175519204,4.00959,1178.8,1178.2,71.42152238]
[1610175520504,4.00959,1178.8,1178.1,2.2040159]
[1610175520706,4.00959,1178.2,1178.1,2.2040159]
[1610175521605,48.788,1179.0,1178.1,2.2040159]
[1610175521805,42.65359742,1179.2,1178.1,2.2040159]
[1610175522005,6.5706,1179.3,1178.1,2.2040159]
[1610175522006,49.27059751,1179.3,1178.1,2.2040159]
[1610175522406,6.5706,1179.3,1178.1,2.2040159]
[1610175522606,4.00959,1178.3,1178.2,4.00959]
[1610175524009,4.00959,1178.3,1178.1,2.2040159]
[1610175524613,4.00959,1178.3,1178.1,6.2136059]
[1610175526015,4.00959,1178.3,1178.1,2.2040159]
[1610175526616,4.00959,1178.3,1178.1,6.2136059]
[1610175527515,56.7097,1179.2,1178.1,6.2136059]
[1610175527716,1.5992,1179.2,1178.1,6.2136059]
[1610175528117,6.5706,1179.3,1178.1,6.2136059]
[1610175528617,4.00959,1178.5,1178.4,4.00959]
[1610175529924,6.5706,1179.3,1178.4,4.00959]
[1610175530123,49.17570001,1179.8,1178.4,6.51939]
[1610175530326,42.78290001,1179.8,1178.5,69.413]
[1610175530525,44.62272534,1179.9,1178.5,69.413]
[1610175530723,4.00959,1179.0,1178.9,4.00959]
[1610175531223,42.81821677,1180.0,1178.9,4.00959]
[1610175531423,42.81821677,1180.0,1179.0,7.7964]
[1610175531623,18.42568999,1180.2,1179.0,7.7964]
[1610175531624,42.85570015,1180.1,1179.0,7.7964]
[1610175532025,3.405,1180.2,1179.0,9.09044186]
[1610175532626,4.00959,1179.6,1179.3,4.00959]
[1610175533028,4.00959,1179.6,1179.0,9.09044186]
[1610175533329,4.00959,1179.6,1179.0,7.7964]
[1610175534628,3.405,1180.2,1179.1,5.30362431]
[1610175535029,46.4535108,1180.2,1179.1,5.30362431]
[1610175535532,46.4535108,1180.2,1179.1,1.29403431]
[1610175535732,43.0979283,1180.1,1179.1,1.29403431]
[1610175536332,43.0979283,1180.1,1179.0,7.7964]
[1610175536533,30.0,1180.0,1179.0,7.7964]
[1610175536733,4.00959,1179.1,1179.0,7.7964]
[1610175536934,4.00959,1179.1,1178.9,1.8935]
[1610175537132,4.00959,1179.1,1178.4,2.5098]
[1610175537333,4.00959,1179.1,1178.3,0.25886957]
[1610175537532,4.00959,1179.1,1178.2,50.7551]
[1610175537732,7.41459,1179.1,1178.2,50.7551]
[1610175538734,4.00959,1178.3,1178.2,54.76469]
[1610175538934,4.00959,1178.3,1178.2,4.00959]
[1610175540335,3.405,1179.1,1178.2,4.00959]
[1610175540740,3.405,1179.1,1178.7,4.00959]
[1610175540937,3.405,1179.1,1178.7,6.06599]
[1610175541137,9.4581,1179.6,1178.7,6.06599]
[1610175541538,9.4581,1179.6,1178.7,2.0564]
[1610175542638,9.4581,1179.6,1178.9,4.00959]
[1610175542840,9.4581,1179.6,1178.7,2.0564]
[1610175544444,3.405,1179.6,1178.7,2.0564]
[1610175544644,3.405,1179.6,1178.8,4.00959]
[1610175545643,3.405,1179.6,1178.7,2.0564]
[1610175546044,3.405,1179.6,1178.1,50.79372566]
[1610175546644,4.00959,1178.8,1178.7,4.00959]
[1610175548946,3.405,1179.6,1178.7,4.00959]
[1610175549348,3.405,1179.6,1178.7,6.36329]
[1610175549647,3.405,1179.6,1178.7,2.3537]
[1610175550450,63.1966,1179.5,1178.7,2.3537]
[1610175550647,4.00959,1178.8,1178.7,2.3537]
[1610175553250,4.00959,1178.8,1178.1,2.2040159]
[1610175554850,4.00959,1178.2,1178.1,2.2040159]
[1610175559853,2.0079,1179.0,1178.1,2.2040159]
[1610175560054,3.405,1179.1,1178.1,2.2040159]
[1610175560859,4.00959,1179.0,1178.8,4.00959]
[1610175563558,4.00959,1179.0,1178.3,0.2588924]
[1610175563758,4.00959,1179.0,1178.2,0.2588973]
[1610175564358,4.00959,1179.0,1178.1,2.2040159]
[1610175564559,7.41459,1179.0,1178.1,2.2040159]
[1610175564759,3.405,1179.0,1178.2,4.00959]
[1610175564958,3.405,1179.0,1178.1,2.2040159]
[1610175566761,3.405,1179.0,1178.2,4.00959]
[1610175567161,3.405,1179.0,1178.1,2.2040159]
[1610175568765,4.00959,1178.2,1178.1,2.2040159]
[1610175570768,4.00959,1178.2,1178.1,6.2136059]
[1610175570968,6.0165,1179.0,1178.1,6.2136059]
[1610175571370,3.405,1179.0,1178.1,6.2136059]
[1610175572773,3.405,1179.0,1178.7,4.00959]
[1610175572977,3.405,1179.0,1178.7,6.48089]
[1610175573177,42.8197167,1179.6,1178.7,6.48089]
[1610175574779,4.00959,1178.8,1178.7,6.48089]
[1610175575180,4.00959,1178.8,1178.7,2.4713]
[1610175575979,4.00959,1178.8,1178.1,2.2040159]
[1610175576881,4.00959,1178.2,1178.1,2.2040159]
[1610175578084,10.216,1178.9,1178.1,2.2040159]
[1610175578882,4.00959,1178.6,1178.5,4.00959]
[1610175580281,6.811,1178.9,1178.5,4.00959]
[1610175580482,6.811,1178.9,1178.5,5.63469]
[1610175580683,9.9091,1179.5,1178.5,5.63469]
[1610175580883,4.00959,1178.8,1178.7,4.00959]
[1610175581083,4.00959,1178.8,1178.5,1.6251]
[1610175582784,4.00959,1178.6,1178.5,1.6251]
[1610175585587,4.00959,1178.6,1178.4,4.00959]
[1610175587187,4.00959,1178.6,1178.1,2.2040159]
[1610175588688,4.00959,1178.6,1178.2,1.29500642]
[1610175588888,4.00959,1178.3,1178.2,5.30459642]
[1610175592090,52.52096965,1179.5,1178.2,5.30459642]
[1610175592695,9.9091,1179.5,1178.2,5.30459642]
[1610175592893,4.00959,1178.6,1178.4,4.00959]
[1610175597604,9.9091,1179.5,1178.4,13.13519]
[1610175597806,9.9091,1179.5,1178.5,53.4265]
[1610175598505,3.405,1179.5,1178.5,53.4265]
[1610175598706,3.405,1179.5,1178.6,1.29462353]
[1610175598905,4.00959,1178.9,1178.8,4.00959]
[1610175600206,3.405,1179.5,1178.8,4.00959]
[1610175600407,3.405,1179.5,1178.8,5.66599]
[1610175600807,3.405,1179.5,1179.1,4.00959]
[1610175601006,3.405,1179.5,1179.1,6.48249]
[1610175601808,3.405,1179.5,1179.1,2.4729]
[1610175602916,4.00959,1179.2,1179.1,2.4729]
[1610175604510,4.00959,1179.2,1178.8,1.6564]
[1610175604710,4.00959,1179.2,1178.4,1.7356]
[1610175604913,67.7406,1179.5,1178.2,4.00959]
[1610175604914,4.00959,1178.5,1178.2,4.00959]
[1610175605613,4.00959,1178.5,1178.1,2.2040159]
[1610175606815,4.00959,1178.2,1178.1,2.2040159]
[1610175608817,66.90289,1178.2,1178.1,2.2040159]
[1610175610719,4.00959,1178.2,1178.1,2.2040159]
[1610175612320,68.09599,1178.2,1178.1,2.2040159]
[1610175613421,68.09599,1178.2,1178.1,0.6153159]
[1610175613623,4.00959,1178.2,1178.1,0.6153159]
[1610175613822,46.62299051,1178.2,1178.1,0.6153159]
[1610175614624,4.00959,1178.2,1178.1,0.6153159]
[1610175614823,46.61379673,1178.2,1178.1,0.6153159]
[1610175615628,37.12036781,1178.2,1178.1,0.6153159]
[1610175615829,50.60091575,1178.2,1178.1,0.6153159]
[1610175616228,37.12036781,1178.2,1178.1,0.6153159]
[1610175616627,42.30625144,1178.2,1178.1,0.6153159]
[1610175618028,59.51467956,1178.2,1178.1,0.6153159]
[1610175618226,66.04327956,1178.2,1178.1,0.6153159]
[1610175618429,48.83485144,1178.2,1178.1,0.6153159]
[1610175618827,48.83485144,1178.2,1178.1,0.3603159]
[1610175619028,0.255,1178.0,1176.7,1.8897]
[1610175619229,30.0,1177.9,1175.6,0.62562846]
[1610175619428,30.0,1177.9,1175.7,57.9618]
[1610175619630,42.47940072,1177.1,1175.7,2.5227]
[1610175619829,31.35696786,1177.0,1175.7,2.5227]
[1610175620232,6.5682,1177.0,1175.7,2.5227]
[1610175620631,12.584,1177.0,1175.7,2.5227]
[1610175621033,4.00959,1176.1,1175.7,2.5227]
[1610175622533,57.9252,1176.9,1175.7,2.5227]
[1610175622733,12.584,1177.0,1175.7,2.5227]
[1610175622936,4.00959,1176.6,1176.3,4.00959]
[1610175623134,12.584,1177.0,1176.3,4.00959]
[1610175623334,12.584,1177.0,1176.3,36.28629]
[1610175623536,12.584,1177.0,1176.6,70.0502]
[1610175623733,12.584,1177.0,1176.6,72.5405]
[1610175624336,12.584,1177.0,1176.7,30.0]
[1610175624939,12.584,1177.0,1176.9,4.00959]
[1610175625138,4.564,1177.0,1176.9,5.84059]
[1610175625540,42.69180287,1178.3,1176.9,61.55609]
[1610175625740,42.69180287,1178.3,1176.9,5.84059]
[1610175625940,42.69180287,1178.3,1177.6,30.0]
[1610175626143,42.73128134,1178.6,1177.5,85.353]
[1610175626341,42.73128134,1178.6,1177.6,2.5238]
[1610175626541,42.78355909,1178.7,1177.6,1.9271]
[1610175626942,46.82630642,1179.0,1178.4,4.00959]
[1610175627341,4.00959,1179.0,1178.4,5.87189]
[1610175629043,4.00959,1178.8,1178.4,5.87189]
[1610175630643,4.00959,1178.8,1178.4,1.8623]
[1610175631042,4.00959,1178.5,1178.4,1.8623]
[1610175632042,4.00959,1178.5,1178.4,0.8623]
[1610175632244,4.00959,1178.5,1177.6,1.9271]
[1610175632445,4.00959,1178.5,1176.9,2.34917043]
[1610175632645,7.41459,1178.5,1176.9,2.34917043]
[1610175632847,7.41459,1178.5,1176.9,1.831]
[1610175633047,4.00959,1177.3,1177.1,4.00959]
[1610175633246,46.20917284,1178.5,1176.7,0.51826804]
[1610175633446,50.3089,1177.8,1176.6,3.00861272]
[1610175633849,50.3089,1177.8,1176.6,2.4903]
[1610175634048,50.3089,1177.8,1176.2,0.5184781]
[1610175634448,50.3089,1177.8,1176.1,0.51850453]
[1610175635047,4.00959,1177.1,1176.7,4.00959]
[1610175636050,4.00959,1177.1,1176.3,0.51844368]
[1610175636651,4.00959,1177.1,1176.2,0.51846319]
[1610175637053,4.00959,1176.3,1176.1,0.51848521]
[1610175637251,4.00959,1176.3,1176.0,4.00959]
[1610175637452,4.00959,1176.3,1175.9,0.51855788]
[1610175637651,4.00959,1176.3,1175.8,0.51861286]
[1610175638053,49.4323,1177.0,1175.7,0.51870683]
[1610175638251,49.4323,1177.0,1175.7,2.38480683]
[1610175638451,49.4323,1177.0,1175.7,1.8661]
[1610175639053,49.4323,1177.0,1175.9,4.00959]
[1610175639453,42.54492036,1177.4,1175.9,4.00959]
[1610175640054,42.54492036,1177.4,1175.9,12.85809]
[1610175640256,42.51999456,1177.6,1175.9,4.00959]
[1610175640657,2.1224,1177.7,1175.9,4.52819188]
[1610175640855,2.1224,1177.7,1175.8,5.30609469]
[1610175641056,2.1224,1177.7,1176.9,4.00959]
[1610175641660,2.1224,1177.7,1176.8,2.4233]
[1610175643057,4.00959,1177.0,1176.8,2.4233]
[1610175643259,37.48657669,1177.9,1176.8,2.4233]
[1610175643457,37.51000564,1178.0,1176.8,2.4233]
[1610175643759,52.6094384,1178.1,1176.8,2.4233]
[1610175643957,50.3703384,1178.1,1176.8,2.4233]
[1610175644162,12.8535,1178.1,1176.8,2.4233]
[1610175644760,12.8535,1178.1,1176.9,69.0231]
[1610175645160,4.00959,1178.0,1177.7,4.00959]
[1610175645760,4.00959,1178.0,1176.8,2.4233]
[1610175645761,4.00959,1178.0,1176.8,61.9622]
[1610175647161,4.00959,1178.0,1177.7,4.00959]
[1610175647361,4.00959,1178.0,1177.7,6.04049]
[1610175647762,12.8535,1178.1,1177.7,6.04049]
[1610175648561,3.405,1178.5,1177.7,6.04049]
[1610175648764,37.51344229,1178.7,1177.7,6.04049]
[1610175648962,37.52256125,1178.8,1177.7,6.04049]
[1610175649161,4.00959,1178.2,1177.7,2.0309]
[1610175650763,37.52228486,1178.7,1177.7,2.0309]
[1610175651164,42.65409399,1179.0,1178.6,4.00959]
[1610175651362,42.65409399,1179.0,1178.2,1.5717]
[1610175651565,4.00959,1179.1,1178.2,1.5717]
[1610175653167,4.00959,1178.4,1178.2,1.5717]
[1610175654570,42.69754031,1178.8,1178.2,1.5717]
[1610175654968,42.75216532,1179.0,1178.2,1.5717]
[1610175655368,42.78969502,1179.1,1178.2,1.5717]
[1610175655768,72.78969502,1179.1,1178.2,1.5717]
[1610175655969,30.0,1178.9,1178.2,1.5717]
[1610175656168,72.77682696,1178.9,1178.2,1.5717]
[1610175656370,72.77682696,1178.9,1177.7,2.0309]
[1610175656569,42.76883639,1178.8,1177.0,57.90801132]
[1610175656869,42.76883639,1178.8,1177.0,57.3899]
[1610175657070,42.76883639,1178.8,1177.8,4.00959]
[1610175657269,42.7626882,1178.7,1177.8,5.97319]
[1610175658371,42.83532132,1178.9,1177.8,5.97319]
[1610175658771,2.3893,1179.0,1177.8,5.97319]
[1610175659171,2.3893,1179.0,1178.3,4.00959]
[1610175659573,42.88155651,1179.1,1178.3,4.00959]
[1610175659973,42.88073886,1179.2,1178.3,4.00959]
[1610175660773,42.8767346,1179.3,1178.3,4.00959]
[1610175661176,4.00959,1178.7,1178.6,4.00959]
[1610175661377,4.00959,1178.7,1178.2,2.0171]
[1610175663079,4.00959,1178.4,1178.3,4.00959]
[1610175663280,42.85003123,1179.0,1178.2,2.0171]
[1610175663482,42.85003123,1179.0,1178.2,53.017]
[1610175663880,42.87435239,1179.3,1178.2,83.017]
[1610175664281,42.92785051,1179.6,1178.2,83.017]
[1610175664686,42.96088173,1179.8,1178.3,1.29432219]
[1610175664880,18.43634487,1180.2,1178.3,1.29432219]
[1610175664881,43.00856167,1179.9,1178.3,1.29432219]
[1610175665281,4.00959,1179.6,1178.3,1.29432219]
[1610175666883,43.05522316,1180.0,1178.3,1.29432219]
[1610175667287,4.00959,1179.9,1179.8,4.00959]
[1610175667485,4.00959,1179.9,1178.3,1.81192199]
[1610175668487,4.00959,1179.9,1178.3,1.29432219]
[1610175668687,4.00959,1179.9,1178.4,1.29410868]
[1610175669191,43.00393573,1179.9,1178.4,1.29410868]
[1610175669797,43.01240461,1179.8,1178.4,1.29410868]
[1610175669992,43.01240461,1179.8,1178.3,1.29446523]
[1610175670193,42.98469309,1179.6,1178.3,1.29446523]
[1610175671194,42.99355775,1179.7,1179.1,4.00959]